Cogmind - Beta 17.1 @@@ ROGUE MODE // 2026.09.23 @ 19:16:17 Player: MolePlayingNice Result: Self-destructed Performance ------------- Evolutions (8) 4000 Regions Visited (24) 4800 Robots Destroyed (411) 2055 Value Destroyed (21283) 21283 Prototype IDs (42) 840 Alien Tech Used (3) 600 Bonus (5991) 5991 TOTAL SCORE: 39569 Bonus ------- High Alert Combat Kills 2319 Follower Combat Kills 188 Met Zhirov 300 Met Warlord at Base 500 MAIN.C Attacked Warlord 500 Warlord Defense Kills 2778 Hacked Protovariant 500 Friendly Fire -1094 Cogmind --------- Core Integrity 571/1450 Matter 147/300 Energy 134/135 System Corruption 2% Temperature Cool (0) Movement Treading (180) Location -2/Section 7 Parts ------- > --- POWER (1) -------- Compact Particle Reactor > --- PROPULSION (4) --- Improved Heavy Siege Treads Improved Heavy Siege Treads > --- UTILITY (4) ------ Experimental Cooling System High-capacity Storage Unit Advanced Sensor Array Improved Salvage Targeting Computer > --- WEAPON (14) ------ Enhanced Nova Cannon Heavy Machine Gun Heavy Machine Gun Heavy Machine Gun Heavy Machine Gun Heavy Machine Gun Heavy Machine Gun KE Penetrator KE Penetrator Helical Railgun > --- INVENTORY (20) --- Light Quantum Reactor Advanced Heat Sink Advanced Heat Sink Advanced Heat Sink Experimental Cooling System Experimental Energy Well (600) Experimental Matter Compressor (132) Compact Linear Accelerator Compact Linear Accelerator Chain Missile Launcher Peak State ------------ > --- POWER ------------ Quantum Reactor > --- PROPULSION ------- Advanced Heavy Siege Treads Advanced Heavy Siege Treads > --- UTILITY ---------- Advanced Heat Sink Advanced Heat Sink High-capacity Storage Unit Improved Salvage Targeting Computer > --- WEAPON ----------- Neutron Cannon KE Penetrator KE Penetrator KE Penetrator KE Penetrator KE Penetrator KE Penetrator KE Penetrator Helical Railgun Helical Railgun Helical Railgun Helical Railgun Helical Railgun Helical Railgun > --- INVENTORY -------- Light Quantum Reactor Improved Heavy Siege Treads Improved Heavy Siege Treads Experimental Energy Well Experimental Matter Compressor Advanced Sensor Array Heavy Machine Gun Heavy Machine Gun Heavy Machine Gun Heavy Machine Gun Heavy Machine Gun Heavy Machine Gun KE Penetrator KE Penetrator KE Penetrator Helical Railgun Chain Missile Launcher [Rating: 176] Favorites ----------- Power Antimatter Reactor Engine Light Ion Engine Power Core Enhanced Nuclear Core Reactor Antimatter Reactor Propulsion Heavy Treads Treads Heavy Treads Leg Aluminum Leg Wheel Centrium Wheel Utility High-capacity Storage Unit Device Advanced Heat Sink Storage High-capacity Storage Unit Processor Improved Salvage Targeting Computer Hackware Hacking Suite Protection Light Armor Plating Weapon KE Penetrator Energy Gun Plasma Rifle Energy Cannon Cooled Plasma Cannon Ballistic Gun KE Penetrator Ballistic Cannon Hardcell Cannon Launcher Mini Grenade Launcher Special Weapon Molecular Deconstructor Slashing Weapon Axe Build | -11 -10 -9 -9 -9 -8 -8 -7 -7 -7 -6 -5 -5 -5 -5 -4 -4 -4 -4 -4 -3 -3 -2 -2 -2 ------- Run | Yrd Mat Mat Min Exi Min Mat Fac Was Fac Fac Fac Upp Upp Zhi Pro Fac Upp Upp War Pro Res Res Tes Sec Slots Evolved 16 | . . 2 . . . 2 2 . . 2 2 . . . . 2 . . . . 2 2 . . Power . | . . . . . . . . . . . . . . . . . . . . . . . . . Propulsion 2 | . . . . . . 1 1 . . . . . . . . . . . . . . . . . Utility 2 | . . 1 . . . 1 . . . . . . . . . . . . . . . . . . Weapon 12 | . . 1 . . . . 1 . . 2 2 . . . . 2 . . . . 2 2 . . Parts Attached 286 | . 4 6 3 1 . 17 21 7 . 10 21 3 3 2 8 32 1 4 9 1 28 64 39 2 Power 22 | . 1 . 3 . . 2 2 1 . . 1 . . 1 1 1 . . 1 . 1 4 3 . Engine 7 | . 1 . 3 . . 2 1 . . . . . . . . . . . . . . . . . Core 2 | . . . . . . . 1 . . . . . . . 1 . . . . . . . . . Reactor 13 | . . . . . . . . 1 . . 1 . . 1 . 1 . . 1 . 1 4 3 . Propulsion 37 | . 2 . . . . 2 5 2 . . 2 . . . 1 9 1 1 2 1 2 6 1 . Treads 30 | . 2 . . . . 2 5 2 . . 2 . . . . 3 1 1 2 1 2 6 1 . Leg . | . . . . . . . . . . . . . . . . . . . . . . . . . Wheel 7 | . . . . . . . . . . . . . . . 1 6 . . . . . . . . Hover . | . . . . . . . . . . . . . . . . . . . . . . . . . Flight . | . . . . . . . . . . . . . . . . . . . . . . . . . Utility 59 | . 1 2 . 1 . 7 5 . . 7 6 1 . 1 1 5 . . 3 . 8 5 6 . Device 27 | . . 1 . . . 2 2 . . 2 5 1 . . 1 2 . . 1 . 3 1 6 . Storage 5 | . 1 . . 1 . . . . . . . . . . . . . . 1 . 1 1 . . Processor 12 | . . . . . . 2 1 . . 4 . . . . . 1 . . 1 . . 3 . . Hackware 10 | . . . . . . . 2 . . 1 1 . . . . 2 . . . . 4 . . . Protection 5 | . . 1 . . . 3 . . . . . . . 1 . . . . . . . . . . Artifact . | . . . . . . . . . . . . . . . . . . . . . . . . . Weapon 168 | . . 4 . . . 6 9 4 . 3 12 2 3 . 5 17 . 3 3 . 17 49 29 2 Energy Gun 19 | . . . . . . 2 1 1 . . . . . . . 1 . . . . 9 4 1 . Energy Cannon 12 | . . 1 . . . 1 1 . . . 1 . . . . 4 . . . . 2 1 1 . Ballistic Gun 125 | . . 2 . . . 2 7 3 . 3 11 2 3 . 4 11 . 3 2 . 4 41 26 1 Ballistic Cannon 8 | . . . . . . . . . . . . . . . . 1 . . . . 2 3 1 1 Launcher 2 | . . 1 . . . . . . . . . . . . . . . . 1 . . . . . Special Weapon 1 | . . . . . . . . . . . . . . . 1 . . . . . . . . . Impact Weapon . | . . . . . . . . . . . . . . . . . . . . . . . . . Slashing Weapon 1 | . . . . . . 1 . . . . . . . . . . . . . . . . . . Piercing Weapon . | . . . . . . . . . . . . . . . . . . . . . . . . . Special Melee Weapon . | . . . . . . . . . . . . . . . . . . . . . . . . . Unidentified Prototypes 31 | . . 1 . . . . 4 . . . 1 . . 3 1 3 . . 3 . 4 6 4 1 Corrupted Parts 1 | . . . . . . . . . . . . . . . . . . . 1 . . . . . System Corruption 11 | . . . . . . . . . . . . . . . . . . . 11 . . . . . Parts Lost 97 | . . . . . . 2 3 1 . . 11 . . . 12 11 . 1 2 . 15 20 19 . Power 3 | . . . . . . . . . . . 1 . . . . . . 1 . . . . 1 . Propulsion 8 | . . . . . . . 1 . . . 1 . . . 1 2 . . . . . 1 2 . Utility 9 | . . . . . . 1 1 . . . 1 . . . 1 . . . 1 . 2 2 . . Weapon 77 | . . . . . . 1 1 1 . . 8 . . . 10 9 . . 1 . 13 17 16 . Highest Loss Streak 12 | . . . . . . 2 2 1 . . 5 . . . 3 7 . 1 2 . 4 12 12 . To Critical Strikes 2 | . . . . . . . . . . . . . . . . 2 . . . . . . . . Average Backups 17 | . 7 9 14 15 16 19 19 18 18 17 17 19 20 19 18 18 18 18 17 17 16 15 16 12 Power 1 | . 1 1 1 1 1 1 1 1 1 1 . 1 1 1 1 1 1 . . . . 1 . 1 Propulsion 2 | . 1 2 3 3 3 3 3 3 3 2 1 1 1 1 . 2 2 2 2 3 3 2 1 . Utility 5 | . 1 . 1 2 2 3 6 4 4 6 7 8 8 7 6 7 8 8 6 6 6 3 4 6 Weapon 7 | . 3 6 9 9 9 9 8 9 9 8 7 9 9 8 7 5 6 7 7 7 4 7 9 5 Tool/Special . | . . . . . . . . . . . . . . . . . . . . . . . . . Unused Backups 55 | . 5 . . . . 10 7 4 2 3 5 . 1 1 . 3 1 . 7 . 2 3 . 1 Power 5 | . . . . . . 1 1 1 . . . . . 1 . 1 . . . . . . . . Propulsion 7 | . 2 . . . . . 1 2 . 1 . . . . . . . . . . 1 . . . Utility 16 | . 2 . . . . 2 3 . . 1 1 . . . . . 1 . 3 . 1 1 . 1 Weapon 25 | . 1 . . . . 7 2 1 1 1 4 . 1 . . 1 . . 4 . . 2 . . Tool/Special 2 | . . . . . . . . . 1 . . . . . . 1 . . . . . . . . Average Slot Usage (%) 91 | . 85 98 100 100 100 99 99 94 84 85 87 88 88 46 84 95 100 99 98 100 89 85 88 64 Engine 1 | . 14 11 11 11 11 9 1 2 . . . . . . . . . . . . . . . . Core 1 | . . . . . . . 5 2 . . . . . . 3 . . . . . . . . . Reactor 3 | . . . . . . . . 2 7 6 4 5 5 5 1 4 5 5 5 5 4 4 3 4 Treads 13 | . 27 22 22 22 22 26 29 24 15 13 11 11 11 11 9 5 8 10 8 10 9 7 7 8 Wheel 2 | . . . . . . . . . . . . . . . 1 12 11 10 10 9 1 . . . Device 7 | . . 10 11 11 11 9 3 6 7 5 7 11 11 10 10 7 10 10 10 10 8 5 7 8 Storage 5 | . 14 11 11 11 11 9 7 7 7 6 5 5 5 5 5 5 5 5 5 5 4 4 4 4 Processor 7 | . . . . . . 9 13 15 15 13 8 5 5 5 5 5 5 5 4 5 4 6 4 4 Energy Gun 3 | . . . . . . 4 1 5 . . . . . . . . 5 3 . . 15 9 . . Energy Cannon 5 | . . . . . . 4 1 6 . . . 2 . . . 15 21 21 20 15 9 1 1 2 Ballistic Gun 34 | . 28 31 32 33 33 17 26 16 30 39 46 43 47 5 43 31 21 22 29 36 23 41 56 32 Peak Build Rating 176 | . 7 12 12 11 12 22 46 66 66 75 86 86 81 81 95 115 121 116 120 120 144 168 176 145 Average Rating 92 | . 6 9 11 11 11 17 35 51 66 71 77 83 79 56 80 93 116 112 114 119 133 148 162 116 On Entrance 67 | 6 6 7 11 11 11 12 22 46 66 66 71 86 79 80 81 51 115 116 114 120 120 128 166 107 Avg Prop Armor Cover (%) 6 | . . . . . . . . . . . . . . . 9 4 7 9 6 10 9 . . . Naked Turns . | . . . . . . . . . . . . . . . . . . . . . . . . . Heaviest Build 144 | 12 27 32 32 52 52 59 66 73 73 79 96 96 88 83 88 129 130 127 130 120 137 143 144 102 Greatest Support 160 | 20 40 40 40 40 40 60 88 140 140 140 140 140 140 140 140 64 48 32 120 108 130 160 160 150 Greatest Overweight (x) 7 | . . . . 1 1 . 1 . . . . . . . 5 7 4 3 4 3 4 1 1 . Average Overweight (x) . | . . . . . 1 . . . . . . . . . 1 2 3 3 1 2 . . . . Largest Inventory Capacity 20 | . 15 15 15 20 20 20 20 20 20 20 20 20 20 20 20 20 20 20 20 20 20 20 20 20 Average Capacity 19 | . 9 15 15 15 20 20 20 20 20 20 20 20 20 20 20 20 20 20 20 20 20 20 20 20 Most Carried 20 | . 10 14 15 15 18 20 20 20 20 20 20 20 20 20 20 20 20 20 20 20 20 20 20 14 Average Carried 18 | . 7 9 14 15 16 19 19 19 19 19 18 19 19 19 18 19 19 19 19 20 19 19 19 12 Final Capacity 20 | 8 15 15 15 20 20 20 20 20 20 20 20 20 20 20 20 20 20 20 20 20 20 20 20 20 Final Carried 20 | 6 10 14 15 15 18 20 20 20 20 20 19 20 20 20 19 20 20 20 20 20 19 20 14 11 Class Distribution -------------------- 70% | Scavenger-Executioner 5% | Scavenger-Gunner 5% | Scavenger-Skirmisher 5% | Tank 3% | Gunner Dominant Class ---------------- Mutant | -10/Materials Tank | -9/Materials Tank | -9/Mines Tank | -9/Exiles Tank | -8/Mines Scavenger-Tank | -8/Materials Scavenger-Gunner | -7/Factory Skirmisher | -7/Waste Scavenger-Skirmisher | -7/Factory Scavenger-Executioner | -6/Factory Scavenger-Executioner | -5/Factory Scavenger-Executioner | -5/Upper Caves Scavenger-Executioner | -5/Upper Caves Scavenger-Mutant | -5/Zhirov Scavenger-Executioner | -4/Proximity Caves Scavenger-Executioner | -4/Factory Scavenger-Executioner | -4/Upper Caves Scavenger-Executioner | -4/Upper Caves Scavenger-Executioner | -4/Warlord Scavenger-Executioner | -3/Proximity Caves Scavenger-Executioner | -3/Research Scavenger-Executioner | -2/Research Scavenger-Executioner | -2/Testing Scavenger-Executioner | -2/Section 7 Resources | -11 -10 -9 -9 -9 -8 -8 -7 -7 -7 -6 -5 -5 -5 -5 -4 -4 -4 -4 -4 -3 -3 -2 -2 -2 ----------- Run | Yrd Mat Mat Min Exi Min Mat Fac Was Fac Fac Fac Upp Upp Zhi Pro Fac Upp Upp War Pro Res Res Tes Sec Matter Collected 23674 | 180 119 67 27 . 43 655 1109 520 25 1138 1980 214 524 62 1751 1875 159 240 1122 241 2164 4666 4793 . Remotely 2296 | . . . . . . . . . . . 270 . . . 164 120 . . 72 . 520 1150 . . Salvage Created 25801 | . 140 68 27 . 43 861 1018 1488 26 1862 2585 90 817 119 1404 2966 149 243 687 280 3242 3269 4417 . Parts 1250 | . 23 8 7 . 7 43 55 32 1 81 135 7 38 2 92 127 10 10 24 8 159 150 231 . Haulers Intercepted 6 | . . . . . . 2 . . . 1 1 . . . . 1 . . . . . . 1 . Recyclers Shooed 19 | . . . . . 1 4 . . . 1 2 . . . . 9 . . . . . . 2 . Parts Field Recycled . | . . . . . . . . . . . . . . . . . . . . . . . . . Retrieved Matter . | . . . . . . . . . . . . . . . . . . . . . . . . . Parts Self-Destructed 156 | . . . . . . . . . . . . 6 37 1 91 . . 13 . 8 . . . . Prevented 6 | . . . . . . . . . . . . 2 . . 1 . . 3 . . . . . . Parts Restored . | . . . . . . . . . . . . . . . . . . . . . . . . . Kills | -11 -10 -9 -9 -9 -8 -8 -7 -7 -7 -6 -5 -5 -5 -5 -4 -4 -4 -4 -4 -3 -3 -2 -2 -2 ------- Run | Yrd Mat Mat Min Exi Min Mat Fac Was Fac Fac Fac Upp Upp Zhi Pro Fac Upp Upp War Pro Res Res Tes Sec Combat Hostiles Destroyed 333 | . 7 4 3 . 3 14 22 5 . 19 41 1 15 . 19 24 1 4 17 3 40 50 41 . Guns 266 | . 7 1 . . 3 8 15 2 . 19 41 1 15 . 18 14 1 1 3 2 26 48 41 . Cannons 33 | . . . . . . 3 3 3 . . . . . . . 10 . 3 2 1 8 . . . AOE 26 | . . 3 3 . . 3 4 . . . . . . . . . . . 12 . 1 . . . Classes Destroyed 25 | . 4 1 1 . . 5 3 2 . 1 . . . . 1 . 2 . 4 . . . 1 . Worker 15 | . 1 . . . . 1 3 . . 1 3 . . . . 2 . . . . . . 4 . Builder 17 | . . . . . . 1 1 . . 2 3 . . . . 3 . . . . 2 . 5 . Tunneler 2 | . . . 1 . . . . . . . . . . . . 1 . . . . . . . . Hauler 6 | . . . . . . 2 . . . 1 1 . . . . 1 . . . . . . 1 . Recycler 16 | . . . . . . 1 . . . 4 1 . . . . 6 . . . . 2 . 2 . Mechanic 2 | . . . . . . . . . . . . . . . . 1 . . . . . . 1 . Operator 6 | . . . . . . 1 1 . . 2 . . . . . 1 . . . . 1 . . . Watcher 7 | . 1 . . . . 2 1 . . . . . . . . 1 . . . . . . 2 . Swarmer 78 | . 6 3 3 . 3 3 4 . . . 14 . 7 . 1 3 . . . . 5 22 4 . Grunt 99 | . 1 . . . . 5 8 . . 15 18 . 7 . 3 2 . . 3 . 14 9 14 . Brawler 5 | . . . . . . 1 . . . . . . . . . . . . 2 . 1 . 1 . Duelist 4 | . . . . . . . 1 . . 1 . . . . . . . . 1 . . . 1 . Protector 3 | . . . . . . . . . . . . . . . . . . . 1 . . . 2 . Researcher 1 | . . . . . . . . . . . . . . . . . . . . . . . 1 . Sentry 25 | . . 1 . . . 5 1 . . 1 2 1 1 . 1 7 . . . . 5 . . . Demolisher 5 | . . . . . . . . . . . . . . . . . . . . . . 5 . . Specialist 5 | . . . . . . . . . . . . . . . 3 2 . . . . . . . . Hunter 35 | . . . . . . . 2 . . . 1 . . . 6 5 . 2 . 2 2 4 11 . Programmer 51 | . . . . . . . 6 . . 2 6 . . . 4 5 . 2 5 . 13 1 7 . Behemoth 2 | . . . . . . . . . . . . . . . . . . . 1 1 . . . . Compactor 5 | . . . . . . . . 5 . . . . . . . . . . . . . . . . Enhanced Demolisher 1 | . . . . . . . . . . . . . . . . . . . 1 . . . . . Investigator 1 | . . . . . . . . . . . . . . . . . . . . . . . 1 . Striker 7 | . . . . . . . . . . . . . . . . . . . 2 . . 5 . . Executioner 6 | . . . . . . . . . . . . . . . . . . . 2 . . 4 . . Protovariant X 1 | . . . . . . . . . . . . . . . . . . . . . . . 1 . Samaritan 1 | . . . . . . . . . . . . . . . . . 1 . . . . . . . Surgeon 1 | . . . . . . . . . . 1 . . . . . . . . . . . . . . Wasp 1 | . . . . . . . . . 1 . . . . . . . . . . . . . . . Butcher 1 | . . . . . . . . . . . . . . . 1 . . . . . . . . . Martyr 2 | . . . . . . . . 2 . . . . . . . . . . . . . . . . Mutant 1 | . . . . . . . . . . . . . . . . . 1 . . . . . . . Best Kill Streak 13 | . 3 3 3 . 3 6 5 2 . 4 13 1 5 . 4 7 1 2 12 2 11 10 8 . Combat Bots Only 12 | . 3 3 3 . 3 5 3 2 . 3 11 1 5 . 4 4 1 2 12 2 10 10 5 . Max Kills in Single Turn 8 | . 2 3 3 . 1 2 2 1 1 2 4 1 3 . 1 2 1 1 8 1 2 3 3 . Gunslinging 3 | . 1 . . . . . . . . 1 3 . 2 . . 1 . . . . . 2 1 . Exploded 8 | . . 3 3 . . 2 2 . . . . . . . . . . . 8 . 1 . . . Melee . | . . . . . . . . . . . . . . . . . . . . . . . . . Uniques/NPCs Destroyed . | . . . . . . . . . . . . . . . . . . . . . . . . . Combat | -11 -10 -9 -9 -9 -8 -8 -7 -7 -7 -6 -5 -5 -5 -5 -4 -4 -4 -4 -4 -3 -3 -2 -2 -2 -------- Run | Yrd Mat Mat Min Exi Min Mat Fac Was Fac Fac Fac Upp Upp Zhi Pro Fac Upp Upp War Pro Res Res Tes Sec Hostile Shots Fired 1785 | . 30 7 2 . 14 67 118 1 . 55 172 3 33 . 173 175 12 46 30 19 221 319 288 . Missed 491 | . 11 2 . . 6 23 30 . . 18 41 . 6 . 60 59 4 23 9 10 57 62 70 . Hits 1294 | . 19 5 2 . 8 44 88 1 . 37 131 3 27 . 113 116 8 23 21 9 164 257 218 . Melee 6 | . . . . . . . . 1 . . . . . . 1 . . . . . . 4 . . Projectile 1288 | . 19 5 2 . 8 44 88 . . 37 131 3 27 . 112 116 8 23 21 9 164 253 218 . AOE 8 | . . . . . . . . . . . . . . . . . . . . . . 8 . . Critical Strikes 53 | . 1 . . . . 3 3 1 . . 7 . 1 . 5 5 . . 1 . 10 8 8 . Part Disruptions 7 | . . . . . . . 1 . . . 1 . . . 2 3 . . . . . . . . Damage Taken 27126 | . 165 49 42 . 67 657 1323 44 . 761 2379 68 485 . 1854 2006 50 398 689 188 3745 6740 5416 . Core 1659 | . 35 13 . . 10 98 94 . . 57 143 . . . 104 169 7 36 34 13 272 383 191 . Absorbed by Shields . | . . . . . . . . . . . . . . . . . . . . . . . . . Reduced by Siege Mode 1428 | . . . . . . . . . . 10 71 . 40 . 17 . . . . . 83 962 245 . Regen/Repaired (Parts) 3040 | . . . . . . . . 9 . . . . . . . . . . 474 . . 1332 . 1225 Core Remaining (%) 85 | 100 86 . . . 94 82 . . 86 93 . . . . 75 . . . . 77 79 . . . Volleys Fired 798 | . 21 2 2 . 5 48 67 56 . 43 61 8 14 4 48 82 13 12 15 15 109 88 83 2 Largest 14 | . 2 3 3 . 3 3 4 4 . 6 8 8 8 1 8 10 10 9 10 10 12 14 14 1 Hottest 748 | . 40 60 60 . 60 132 124 133 . 173 239 224 214 30 229 509 528 473 443 441 748 664 487 120 Shots Fired 4663 | . 42 4 4 . 15 132 209 192 3 258 433 22 112 4 309 453 47 81 90 75 611 764 801 2 Gun 4081 | . 42 3 3 . 15 108 176 145 3 258 427 16 112 . 298 293 22 44 48 41 502 744 780 1 Cannon 569 | . . . . . . 22 31 47 . . 6 6 . 4 8 160 25 37 38 34 109 20 21 1 Launcher 10 | . . 1 1 . . 2 2 . . . . . . . . . . . 4 . . . . . Special 3 | . . . . . . . . . . . . . . . 3 . . . . . . . . . Kinetic 3719 | . 42 3 3 . 15 89 170 98 3 258 427 16 112 . 298 289 24 38 48 41 284 680 780 1 Thermal 884 | . . . . . . 41 37 47 . . 6 6 . 4 8 164 23 43 38 34 327 84 21 1 Explosive 10 | . . 1 1 . . 2 2 . . . . . . . . . . . 4 . . . . . Electromagnetic 47 | . . . . . . . . 47 . . . . . . . . . . . . . . . . Robot Hit Streak 38 | . 8 1 1 . 6 12 13 18 1 16 37 11 38 7 28 15 7 6 9 6 18 23 35 . Robot Miss Streak 7 | . 3 1 . . 2 2 6 3 2 7 4 2 3 . 3 5 1 7 4 2 5 7 7 . Penetration Max 2 | . . . . . . . . 1 . 1 1 . . . 1 1 . . 1 . 1 1 2 . Secondary Targets 89 | . 2 . . . 2 . . . . 7 16 . 8 . 4 1 . . . . 4 25 20 . Max Gunslinging Chain 3 | . 1 . . . 1 . . . . 2 3 . 2 . 1 1 . . . . 1 3 3 . Shots Hit Robots 2550 | . 25 2 1 . 9 90 121 134 1 136 254 12 77 4 209 213 20 25 52 32 279 444 410 . Core Hits 1077 | . 11 5 4 . 4 42 76 30 2 71 113 4 37 2 64 96 5 10 67 13 103 144 174 . Critical Kills 25 | . . . . . . . 1 1 . 3 1 . . . . 5 . . 2 . . 3 9 . Critical Parts Destroyed 43 | . . . . . . 1 . . . 2 1 . . . 4 6 1 . 1 1 3 2 21 . Critical Strikes 96 | . . . . . . 6 2 2 . 5 2 . . . 5 12 1 . 3 3 19 6 30 . Burn 22 | . . . . . . 5 1 . . . . . . . . . . . . . 15 1 . . Meltdown 2 | . . . . . . . . . . . . . . . . 1 . . 1 . . . . . Destroy 71 | . . . . . . 1 1 2 . 5 2 . . . 5 10 1 . 2 3 4 5 30 . Blast 1 | . . . . . . . . . . . . . . . . 1 . . . . . . . . Melee Attacks 13 | . . . . . . 1 2 4 . 6 . . . . . . . . . . . . . . Impact . | . . . . . . . . . . . . . . . . . . . . . . . . . Slashing 13 | . . . . . . 1 2 4 . 6 . . . . . . . . . . . . . . Piercing . | . . . . . . . . . . . . . . . . . . . . . . . . . Sneak Attacks 7 | . . . . . . . 1 4 . 2 . . . . . . . . . . . . . . Combat Hostiles . | . . . . . . . . . . . . . . . . . . . . . . . . . Follow-up Attacks . | . . . . . . . . . . . . . . . . . . . . . . . . . Damage Inflicted 63173 | . 339 177 179 . 95 1652 2597 2286 48 3029 4969 248 1431 110 3525 6299 470 649 5038 842 7506 10620 11064 . Guns 50337 | . 338 20 14 . 91 1173 1655 1113 48 2820 4946 248 1431 . 3443 3456 332 258 742 478 6161 10581 10989 . Cannons 7385 | . . . . . . 242 280 889 . . . . . 110 82 2729 138 391 936 364 1146 39 39 . Explosions 4678 | . . 157 165 . . 231 460 . . . . . . . . 108 . . 3360 . 197 . . . Melee 596 | . . . . . . . 150 284 . 162 . . . . . . . . . . . . . . Ramming 177 | . 1 . . . 4 6 52 . . 47 23 . . . . 6 . . . . 2 . 36 . Kinetic 46047 | . 338 20 14 . 91 967 1625 1087 48 2820 4946 248 1431 . 3443 3408 346 231 742 478 3072 9703 10989 . Thermal 11846 | . . . . . . 448 310 889 . . . . . 110 82 2777 124 418 936 364 4432 917 39 . Explosive 4401 | . . 157 165 . . 231 380 . . . . . . . . 108 . . 3360 . . . . . Electromagnetic 106 | . . . . . . . 80 26 . . . . . . . . . . . . . . . . Impact . | . . . . . . . . . . . . . . . . . . . . . . . . . Slashing 596 | . . . . . . . 150 284 . 162 . . . . . . . . . . . . . . Piercing . | . . . . . . . . . . . . . . . . . . . . . . . . . Highest Corruption 17 | . 1 . . . . . 4 4 4 1 2 2 2 2 2 1 3 4 13 13 17 1 2 2 Average Corruption 3 | . 1 . . . . . 1 4 4 1 1 2 2 2 2 1 2 3 5 13 9 1 1 2 Corruption Purged 1 | . . . . . . . . . . 1 . . . . . . . . . . . . . . Corruption Blocked . | . . . . . . . . . . . . . . . . . . . . . . . . . Effects 247 | . 3 . . . . . 26 21 8 1 6 6 14 2 15 4 7 14 3 19 55 10 33 . Message Errors 41 | . 2 . . . . . 8 5 1 . 3 2 2 2 1 1 1 1 . 3 3 . 6 . Matter Fused 55 | . 1 . . . . . 5 5 2 . 1 3 4 . 3 2 4 3 . 5 11 1 5 . Heat Flow Errors 19 | . . . . . . . . 2 . . 2 . . . 2 1 . 2 . 2 4 3 1 . Energy Discharges 33 | . . . . . . . 6 1 . 1 . . 3 . 4 . . . . 4 7 2 5 . Parts Rejected 6 | . . . . . . . . 4 . . . . . . . . . . . . 1 . 1 . Parts Fused 1 | . . . . . . . . . . . . . . . . . . . . . . . 1 . Data Loss (minor) 35 | . . . . . . . 4 2 1 . . . 2 . 3 . 1 6 3 1 7 2 3 . Data Loss (major) 7 | . . . . . . . 2 . 1 . . . . . 1 . 1 . . . 1 . 1 . Misfires 15 | . . . . . . . 1 . 3 . . . 1 . . . . 1 . . 6 1 2 . Alerts 8 | . . . . . . . . 1 . . . 1 1 . . . . 1 . 1 1 . 2 . Weapon Failures 27 | . . . . . . . . 1 . . . . 1 . 1 . . . . 3 14 1 6 . Overload Shots 11 | . . . . . . . 5 5 . . . . . . . . . . 1 . . . . . Overflow Damage 468 | . . . . . . 5 158 64 . 11 . . . . . 70 . . 81 . 36 . 43 . Projectiles 62 | . . . . . . . . . . . . . . . . 17 . . . . 36 . 9 . Explosions 236 | . . . . . . 5 63 . . . . . . . . 53 . . 81 . . . 34 . Melee 170 | . . . . . . . 95 64 . 11 . . . . . . . . . . . . . . Knockbacks 2 | . . . . . . . 1 . . . . . . . . . . . . . 1 . . . Impact 1 | . . . . . . . 1 . . . . . . . . . . . . . . . . . Kinetic 1 | . . . . . . . . . . . . . . . . . . . . . 1 . . . Secondary . | . . . . . . . . . . . . . . . . . . . . . . . . . Self-Inflicted Damage 186 | . . . 25 . . . 73 . . . . . . . . 3 . . . . . . 85 . Shots 3 | . . . 1 . . . 1 . . . . . . . . . . . . . . . 1 . Rammed 20 | . . . . . 1 . 4 . . 4 4 . . . . 1 . . . . 1 . 5 . Targets Rammed 22 | . 1 . . . 1 1 4 . . 4 4 . . . . 1 . . . . 1 . 5 . Kicked . | . . . . . . . . . . . . . . . . . . . . . . . . . Crushed 2 | . 1 . . . . 1 . . . . . . . . . . . . . . . . . . Highest Temperature 434 | . . . . . . 193 158 246 . 328 278 39 57 . 182 288 188 360 76 136 300 434 368 . Average Temperature 91 | . . . . . . 38 40 67 . 97 82 25 21 . 26 53 109 143 27 77 119 159 117 . Received Heat Transfer 3751 | . 30 9 . . . 351 234 . . 297 603 9 157 . 133 57 . . 48 9 466 468 880 . Effects 18 | . . . . . . . . 3 . 1 1 . . . . . . 1 . . 1 11 . . Shutdowns 1 | . . . . . . . . . . . . . . . . . . . . . . 1 . . Energy Bleed 4 | . . . . . . . . . . . 1 . . . . . . . . . 1 2 . . Interference 12 | . . . . . . . . 3 . 1 . . . . . . . 1 . . . 7 . . Matter Decay 1 | . . . . . . . . . . . . . . . . . . . . . . 1 . . Siege Activations 24 | . . . . . . . . . . 1 2 1 2 . 2 . . . . . 1 5 10 . Total Turns 435 | . . . . . . . . . . 9 34 14 35 . 59 . . . . . 52 118 114 . Longest Duration 69 | . . . . . . . . . . 9 22 14 20 . 48 . . . . . 52 69 28 . Martial Activations . | . . . . . . . . . . . . . . . . . . . . . . . . . Shielding Activations . | . . . . . . . . . . . . . . . . . . . . . . . . . Robots Disrupted 2 | . . . . . . . 1 1 . . . . . . . . . . . . . . . . Combat Hostiles 1 | . . . . . . . . 1 . . . . . . . . . . . . . . . . Robots Corrupted 1 | . . . . . . . . . . 1 . . . . . . . . . . . . . . Combat Hostiles . | . . . . . . . . . . . . . . . . . . . . . . . . . Parts Fried 5 | . . . . . . . . . . 5 . . . . . . . . . . . . . . Impact Corruptions 1 | . . . . . . . . . . 1 . . . . . . . . . . . . . . Robots Melted 9 | . . . . . . . . . . . . . . . . 1 . . 1 . 5 2 . . Combat Hostiles 7 | . . . . . . . . . . . . . . . . . . . . . 5 2 . . Parts Melted 78 | . . . . . . 5 1 . . 1 . . . . . 10 . . 3 2 49 7 . . Heat Transferred 19673 | . . . . . . 1406 494 1221 . . . . . 148 111 4097 187 548 1013 498 8184 1766 . . Parts Sabotaged . | . . . . . . . . . . . . . . . . . . . . . . . . . Parts Stolen . | . . . . . . . . . . . . . . . . . . . . . . . . . Parts Stripped . | . . . . . . . . . . . . . . . . . . . . . . . . . Power Chain Reactions 1 | . . . . . . . . . . . . . . . . . . . . . 1 . . . Alert | -11 -10 -9 -9 -9 -8 -8 -7 -7 -7 -6 -5 -5 -5 -5 -4 -4 -4 -4 -4 -3 -3 -2 -2 -2 ------- Run | Yrd Mat Mat Min Exi Min Mat Fac Was Fac Fac Fac Upp Upp Zhi Pro Fac Upp Upp War Pro Res Res Tes Sec Maximum Alert Level 3 | . . . . . . . 2 1 . 1 3 . . . . 2 . . . . 3 3 3 2 Low Security (%) 49 | . 100 100 100 . 100 100 79 95 100 52 14 . . . . 58 . . . . 40 18 . . Level 1 16 | . . . . . . . 12 4 . 47 45 . . . . 14 . . . . 13 18 12 . Level 2 24 | . . . . . . . 7 . . . 21 . . . . 27 . . . . 41 51 43 100 Level 3 8 | . . . . . . . . . . . 19 . . . . . . . . . 5 11 43 . Level 4 . | . . . . . . . . . . . . . . . . . . . . . . . . . Level 5 . | . . . . . . . . . . . . . . . . . . . . . . . . . High Security . | . . . . . . . . . . . . . . . . . . . . . . . . . Max Security . | . . . . . . . . . . . . . . . . . . . . . . . . . Peak Influence 901 | . 107 95 77 . 70 195 612 211 60 302 739 . . . . 584 . . . . 730 788 901 487 Initial 472 | . . 5 33 . . 11 36 211 . . 100 . . . . 26 . . . . . 405 441 472 Average 280 | . 45 14 29 . 37 98 116 49 6 185 416 . . . . 254 . . . . 320 415 620 479 Influence Increases 10658 | . 182 125 82 . 70 438 970 7 60 805 1171 20 330 5 415 1319 . 160 325 80 1261 1315 1503 15 Destroy 0b10 Robot/C 6600 | . 140 80 60 . 60 280 440 . 20 460 820 20 300 . 360 480 . 80 320 60 800 1000 820 . Destroy 0b10 Robot/NC 380 | . 10 . 5 . . 40 30 . . 55 40 . . 5 . 80 . . 5 . 25 . 85 . Destroy Leader 1266 | . 32 20 10 . 10 88 132 . 10 92 142 . 30 . 40 144 . 20 . 20 160 180 136 . Allied During Kill 130 | . . . . . . . . . 30 100 . . . . . . . . . . . . . . Successful Hack 162 | . . . . . . . 41 . . 46 7 . . . . 23 . . . . 21 24 . . Disable Machine 795 | . . . . . . 15 240 . . 45 90 . . . . 165 . . . . 15 45 165 15 Destroy Structure 875 | . . 10 7 . . 15 57 7 . 7 42 . . . . 292 . . . . 150 51 237 . Partial Spotted 15 | . . . . . . . 15 . . . . . . . . . . . . . . . . . Lose Combat Pursuer 435 | . . 15 . . . . 15 . . . 30 . . . 15 135 . 60 . . 90 15 60 . Influence Decreases 10181 | . 168 54 167 . 40 388 447 610 60 600 689 573 360 109 372 822 478 222 48 357 539 1253 1447 378 Entered New Map 2541 | . . 9 52 . . 19 44 392 . . 105 255 26 104 . 17 200 13 . 277 . 317 343 368 Time Decay 6135 | . 168 45 115 . 40 349 372 188 60 486 474 318 334 5 282 545 278 199 48 80 389 736 614 10 Lost Part 915 | . . . . . . 20 25 10 . . 110 . . . 90 110 . 10 . . 150 200 190 . Lost Ally 134 | . . . . . . . . 20 . 114 . . . . . . . . . . . . . . Purge Threat 456 | . . . . . . . 6 . . . . . . . . 150 . . . . . . 300 . Squads Dispatched 70 | . 1 . . . . 2 10 . 1 10 7 . . . . 8 . . . . 11 2 18 . Investigation 8 | . . . . . . . 3 . . 2 2 . . . . . . . . . . . 1 . Extermination 21 | . . . . . . . 5 . 1 3 2 . . . . 3 . . . . 4 . 3 . Reinforcement 23 | . 1 . . . . 2 2 . . 2 2 . . . . 4 . . . . 3 2 5 . Assault 9 | . . . . . . . . . . . 1 . . . . . . . . . 1 . 7 . Garrison 9 | . . . . . . . . . . 3 . . . . . 1 . . . . 3 . 2 . Intercept . | . . . . . . . . . . . . . . . . . . . . . . . . . Searches Triggered . | . . . . . . . . . . . . . . . . . . . . . . . . . Construction Impeded 4 | . . . . . . . . . . . 1 . . . . 1 . . . . 2 . . . Haulers Reinforced 3 | . . . . . . . . . . 1 1 . . . . 1 . . . . . . . . Active Scanning Responses . | . . . . . . . . . . . . . . . . . . . . . . . . . Cargo Convoy Interrupts . | . . . . . . . . . . . . . . . . . . . . . . . . . Stealth | -11 -10 -9 -9 -9 -8 -8 -7 -7 -7 -6 -5 -5 -5 -5 -4 -4 -4 -4 -4 -3 -3 -2 -2 -2 --------- Run | Yrd Mat Mat Min Exi Min Mat Fac Was Fac Fac Fac Upp Upp Zhi Pro Fac Upp Upp War Pro Res Res Tes Sec Distress Signals 19 | . . 1 . . . 4 . . . 3 1 . . . . . . . . . 2 4 4 . Communications Jammed . | . . . . . . . . . . . . . . . . . . . . . . . . . Distress Signals . | . . . . . . . . . . . . . . . . . . . . . . . . . Times Spotted 457 | . 12 5 3 . 3 24 31 10 2 29 48 1 15 . 20 42 1 6 39 2 50 60 54 . Peak Tracking Total 16 | . 4 3 3 . 3 6 3 4 1 4 6 1 5 . 5 5 1 4 16 1 9 7 6 . Tactical Retreats 21 | . . 1 . . . . 1 1 . . 1 . . . 1 7 . 1 . . 3 1 4 . Traps | -11 -10 -9 -9 -9 -8 -8 -7 -7 -7 -6 -5 -5 -5 -5 -4 -4 -4 -4 -4 -3 -3 -2 -2 -2 ------- Run | Yrd Mat Mat Min Exi Min Mat Fac Was Fac Fac Fac Upp Upp Zhi Pro Fac Upp Upp War Pro Res Res Tes Sec Traps Triggered 15 | . 1 . . . . . 2 . . 3 1 . . . . 3 . . 1 . 1 . 3 . Indirectly . | . . . . . . . . . . . . . . . . . . . . . . . . . Trap Hack Attempts . | . . . . . . . . . . . . . . . . . . . . . . . . . Triggered . | . . . . . . . . . . . . . . . . . . . . . . . . . Disarmed . | . . . . . . . . . . . . . . . . . . . . . . . . . Reprogrammed . | . . . . . . . . . . . . . . . . . . . . . . . . . Reused . | . . . . . . . . . . . . . . . . . . . . . . . . . Traps Extracted . | . . . . . . . . . . . . . . . . . . . . . . . . . Installed . | . . . . . . . . . . . . . . . . . . . . . . . . . Triggered . | . . . . . . . . . . . . . . . . . . . . . . . . . Machines | -11 -10 -9 -9 -9 -8 -8 -7 -7 -7 -6 -5 -5 -5 -5 -4 -4 -4 -4 -4 -3 -3 -2 -2 -2 ---------- Run | Yrd Mat Mat Min Exi Min Mat Fac Was Fac Fac Fac Upp Upp Zhi Pro Fac Upp Upp War Pro Res Res Tes Sec Machines Disabled 56 | . . . . . . 1 16 . . 3 6 . . . 1 11 1 . 1 . 1 3 11 1 Max in Single Turn 6 | . . . . . . 1 6 . . 1 1 . . . 1 5 1 . 1 . 1 1 2 1 Garrison Access 4 | . . . . . . . 1 . . . 1 . . . . 1 . . . . . . 1 . Machines Repaired . | . . . . . . . . . . . . . . . . . . . . . . . . . Machines Dismantled . | . . . . . . . . . . . . . . . . . . . . . . . . . Machines Sabotaged . | . . . . . . . . . . . . . . . . . . . . . . . . . Overloaded Fab Kills . | . . . . . . . . . . . . . . . . . . . . . . . . . Hacking | -11 -10 -9 -9 -9 -8 -8 -7 -7 -7 -6 -5 -5 -5 -5 -4 -4 -4 -4 -4 -3 -3 -2 -2 -2 --------- Run | Yrd Mat Mat Min Exi Min Mat Fac Was Fac Fac Fac Upp Upp Zhi Pro Fac Upp Upp War Pro Res Res Tes Sec Machines Accessed 50 | . 1 1 . 1 . . 13 . 1 5 6 . 1 4 . 8 . . 1 . 4 1 3 . Terminals 22 | . 1 . . . . . 7 . 1 2 1 . . . . 4 . . . . 3 . 3 . Fabricators 6 | . . . . . . . 1 . . 2 3 . . . . . . . . . . . . . Repair Stations 2 | . . . . . . . . . . . . . . . . 2 . . . . . . . . Recycling Units 2 | . . . . . . . 1 . . . . . . . . . . . . . 1 . . . Scanalyzers 7 | . . 1 . . . . 2 . . 1 1 . . . . 1 . . . . . 1 . . Garrison Access 4 | . . . . . . . 2 . . . 1 . . . . 1 . . . . . . . . Total Hacks 126 | . 2 4 . 1 . . 32 . 3 14 17 . 1 17 . 14 . . 1 . 7 2 11 . Successful 65 | . 1 3 . 1 . . 14 . . 9 6 . 1 17 . 5 . . 1 . 2 1 4 . Failed 59 | . 1 . . . . . 18 . 3 5 10 . . . . 9 . . . . 5 1 7 . Catastrophic 12 | . . . . . . . 5 . . 1 4 . . . . . . . . . 1 1 . . Database Lockouts 2 | . . 1 . . . . . . . . 1 . . . . . . . . . . . . . Manual 33 | . 2 . . . . . 12 . 3 3 3 . . . 1 5 . . . . 1 . 3 . Terminals 54 | . 2 . . . . . 18 . 3 4 3 . . . . 8 . . . . 5 . 11 . Fabricators 15 | . . . . . . . 3 . . 6 6 . . . . . . . . . . . . . Repair Stations 3 | . . . . . . . . . . . . . . . . 3 . . . . . . . . Recycling Units 4 | . . . . . . . 2 . . . . . . . . . . . . . 2 . . . Scanalyzers 24 | . . 4 . . . . 7 . . 4 5 . . . . 2 . . . . . 2 . . Garrison Access 6 | . . . . . . . 2 . . . 3 . . . . 1 . . . . . . . . Terminal Hacks 34 | . . . . 1 . . 5 . . 1 1 . 1 17 . 2 . . 1 . 1 . 4 . Record 6 | . . . . 1 . . . . . . . . . 5 . . . . . . . . . . Part Schematic 6 | . . . . . . . 2 . . . . . . 4 . . . . . . . . . . Robot Analysis 4 | . . . . . . . . . . . . . . 4 . . . . . . . . . . Prototype ID Bank 4 | . . . . . . . . . . . . . . 4 . . . . . . . . . . Open Door 2 | . . . . . . . . . . . . . 1 . . . . . 1 . . . . . Branch Access Points 3 | . . . . . . . . . . . 1 . . . . 1 . . . . 1 . . . Fabricator Index 1 | . . . . . . . 1 . . . . . . . . . . . . . . . . . Unreport Threat 4 | . . . . . . . 1 . . . . . . . . 1 . . . . . . 2 . Hauler Manifests 1 | . . . . . . . 1 . . . . . . . . . . . . . . . . . Zone Layout 1 | . . . . . . . . . . 1 . . . . . . . . . . . . . . Protovariant Controls 2 | . . . . . . . . . . . . . . . . . . . . . . . 2 . Fabricator Hacks 5 | . . . . . . . 1 . . 3 1 . . . . . . . . . . . . . Load Schematic 4 | . . . . . . . 1 . . 2 1 . . . . . . . . . . . . . Build 1 | . . . . . . . . . . 1 . . . . . . . . . . . . . . Repair Station Hacks . | . . . . . . . . . . . . . . . . . . . . . . . . . Recycling Unit Hacks 2 | . . . . . . . 1 . . . . . . . . . . . . . 1 . . . Retrieve Components 2 | . . . . . . . 1 . . . . . . . . . . . . . 1 . . . Scanalyzer 17 | . . 3 . . . . 6 . . 3 3 . . . . 1 . . . . . 1 . . Retrieve Study 17 | . . 3 . . . . 6 . . 3 3 . . . . 1 . . . . . 1 . . Garrison Access Hacks 3 | . . . . . . . 1 . . . 1 . . . . 1 . . . . . . . . Seal Access 3 | . . . . . . . 1 . . . 1 . . . . 1 . . . . . . . . Unauthorized Hacks 4 | . 1 . . . . . . . . 2 . . . . . 1 . . . . . . . . Terminals 4 | . 1 . . . . . . . . 2 . . . . . 1 . . . . . . . . Assimilate 2 | . 1 . . . . . . . . . . . . . . 1 . . . . . . . . Botnet 2 | . . . . . . . . . . 2 . . . . . . . . . . . . . . Fabricators . | . . . . . . . . . . . . . . . . . . . . . . . . . Repair Stations . | . . . . . . . . . . . . . . . . . . . . . . . . . Recycling Units . | . . . . . . . . . . . . . . . . . . . . . . . . . Scanalyzers . | . . . . . . . . . . . . . . . . . . . . . . . . . Garrison Access . | . . . . . . . . . . . . . . . . . . . . . . . . . Data Cores Recovered 1 | . . . . . . . . . . . . . . . . . . . . . . . 1 . Used . | . . . . . . . . . . . . . . . . . . . . . . . . . Hacking Detections 37 | . . . . . . . 12 . 1 5 4 . . . . 7 . . . . 4 1 3 . Full Trace Events 7 | . . . . . . . 3 . . 2 2 . . . . . . . . . . . . . Feedback Events 1 | . . . . . . . . . . 1 . . . . . . . . . . . . . . Corruption 1 | . . . . . . . . . . 1 . . . . . . . . . . . . . . Feedback Blocked . | . . . . . . . . . . . . . . . . . . . . . . . . . Robot Schematics Acquired 4 | . . . . . . . . . . . . . . . . . . . . . . . 4 . Robots Built . | . . . . . . . . . . . . . . . . . . . . . . . . . Authchips . | . . . . . . . . . . . . . . . . . . . . . . . . . Time . | . . . . . . . . . . . . . . . . . . . . . . . . . Total Robot Build Rating . | . . . . . . . . . . . . . . . . . . . . . . . . . Part Schematics Acquired 10 | . . . . . . . 2 . . . . . . 4 . . . . . . . . 4 . Parts Built 2 | . . . . . . . . . . 2 . . . . . . . . . . . . . . Authchips . | . . . . . . . . . . . . . . . . . . . . . . . . . Time 42 | . . . . . . . . . . 42 . . . . . . . . . . . . . . Total Part Build Rating 8 | . . . . . . . . . . 8 . . . . . . . . . . . . . . Part Studies Acquired 17 | . . 3 . . . . 6 . . 3 3 . . . . 1 . . . . . 1 . . Parts Repaired . | . . . . . . . . . . . . . . . . . . . . . . . . . Time . | . . . . . . . . . . . . . . . . . . . . . . . . . Parts Recycled . | . . . . . . . . . . . . . . . . . . . . . . . . . Recycled Matter . | . . . . . . . . . . . . . . . . . . . . . . . . . Retrieved Matter . | . . . . . . . . . . . . . . . . . . . . . . . . . Retrieved Components 4 | . . . . . . . 1 . . . . . . . . . . . . . 3 . . . Parts Scanalyzed . | . . . . . . . . . . . . . . . . . . . . . . . . . Part Schematics Acquired . | . . . . . . . . . . . . . . . . . . . . . . . . . Parts Damaged . | . . . . . . . . . . . . . . . . . . . . . . . . . Bothacking | -11 -10 -9 -9 -9 -8 -8 -7 -7 -7 -6 -5 -5 -5 -5 -4 -4 -4 -4 -4 -3 -3 -2 -2 -2 ------------ Run | Yrd Mat Mat Min Exi Min Mat Fac Was Fac Fac Fac Upp Upp Zhi Pro Fac Upp Upp War Pro Res Res Tes Sec Used RIF Installer . | . . . . . . . . . . . . . . . . . . . . . . . . . Robots Hacked . | . . . . . . . . . . . . . . . . . . . . . . . . . Non-combat . | . . . . . . . . . . . . . . . . . . . . . . . . . Combat . | . . . . . . . . . . . . . . . . . . . . . . . . . Robot Hacks Applied . | . . . . . . . . . . . . . . . . . . . . . . . . . Relay Couplers Released 3 | . . . . . . . 3 . . . . . . . . . . . . . . . . . Programmers 3 | . . . . . . . 3 . . . . . . . . . . . . . . . . . Fabnet Peak Effective % . | . . . . . . . . . . . . . . . . . . . . . . . . . Robots Rewired 1 | . . . . . . . . 1 . . . . . . . . . . . . . . . . Allies Hacked . | . . . . . . . . . . . . . . . . . . . . . . . . . Hacks Repelled . | . . . . . . . . . . . . . . . . . . . . . . . . . Allies | -11 -10 -9 -9 -9 -8 -8 -7 -7 -7 -6 -5 -5 -5 -5 -4 -4 -4 -4 -4 -3 -3 -2 -2 -2 -------- Run | Yrd Mat Mat Min Exi Min Mat Fac Was Fac Fac Fac Upp Upp Zhi Pro Fac Upp Upp War Pro Res Res Tes Sec Total Allies 20 | . 1 . . . . . . 19 . . . . . . . . . . . . . . . . Largest Group 18 | . 1 1 1 1 1 1 1 18 16 13 . . . . . . . . . . . . . . Highest-Rated Group 434 | . 10 10 10 10 10 10 10 434 364 322 . . . . . . . . . . . . . . Highest-Rated Ally 141 | . 10 10 10 10 10 10 10 141 31 31 . . . . . . . . . . . . . . Total Orders . | . . . . . . . . . . . . . . . . . . . . . . . . . Ally Attacks 105 | . . . . . . . . 2 26 77 . . . . . . . . . . . . . . Total Damage 1527 | . . . . . . . . 86 332 1109 . . . . . . . . . . . . . . Kills 8 | . . . . . . . . . 1 7 . . . . . . . . . . . . . . Allies Corrupted . | . . . . . . . . . . . . . . . . . . . . . . . . . Allies Melted 3 | . . . . . . . . . . . . . . . . . . . 1 . . 2 . . Intel | -11 -10 -9 -9 -9 -8 -8 -7 -7 -7 -6 -5 -5 -5 -5 -4 -4 -4 -4 -4 -3 -3 -2 -2 -2 ------- Run | Yrd Mat Mat Min Exi Min Mat Fac Was Fac Fac Fac Upp Upp Zhi Pro Fac Upp Upp War Pro Res Res Tes Sec Active Infowar (turns) 12764 | . . . . . . 846 604 851 494 1205 472 618 160 . 970 811 609 432 1159 320 1028 1499 679 7 Optics 2299 | . . . . . . 800 . . . . . . . . . . . . . . . 1499 . . Sensors 10463 | . . . . . . 46 604 851 494 1205 472 618 160 . 970 811 609 432 1159 320 1028 . 677 7 Jamming 2 | . . . . . . . . . . . . . . . . . . . . . . . 2 . Robot Analysis Total 4 | . . . . . . . . . . . . . . 4 . . . . . . . . . . Derelict Logs Recovered 4 | . . . . . . . . . . . . . 1 . 1 . 1 1 . . . . . . Drone Launches . | . . . . . . . . . . . . . . . . . . . . . . . . . Drone Recoveries . | . . . . . . . . . . . . . . . . . . . . . . . . . Exploration | -11 -10 -9 -9 -9 -8 -8 -7 -7 -7 -6 -5 -5 -5 -5 -4 -4 -4 -4 -4 -3 -3 -2 -2 -2 ------------- Run | Yrd Mat Mat Min Exi Min Mat Fac Was Fac Fac Fac Upp Upp Zhi Pro Fac Upp Upp War Pro Res Res Tes Sec Turns Passed 24429 | . 404 220 268 340 109 856 3111 888 494 1467 1202 705 982 286 1174 1584 609 473 1263 372 1841 3719 2039 23 Spaces Moved 12384 | 1 201 124 160 205 45 404 1762 328 293 740 532 410 560 156 546 771 359 267 721 206 786 1870 932 5 Core . | . . . . . . . . . . . . . . . . . . . . . . . . . Treads 9968 | . 201 124 160 205 45 404 1762 328 293 740 532 410 560 156 413 52 . . 150 3 623 1870 932 5 Legs 1 | 1 . . . . . . . . . . . . . . . . . . . . . . . . Wheels 2415 | . . . . . . . . . . . . . . . 133 719 359 267 571 203 163 . . . Hover . | . . . . . . . . . . . . . . . . . . . . . . . . . Flight . | . . . . . . . . . . . . . . . . . . . . . . . . . Fastest Speed 115 | 120 160 160 160 160 200 160 156 155 160 160 160 160 160 160 160 115 130 150 130 150 165 160 160 180 Average Speed 159 | 120 160 160 160 165 200 160 159 157 160 160 160 160 160 160 163 148 155 150 141 151 170 166 164 180 Slowest Speed 400 | 120 160 160 160 200 200 160 200 160 160 160 160 160 160 160 200 400 170 150 170 250 225 225 270 180 Overloaded Moves . | . . . . . . . . . . . . . . . . . . . . . . . . . Propulsion Burnouts . | . . . . . . . . . . . . . . . . . . . . . . . . . Robots Hopped . | . . . . . . . . . . . . . . . . . . . . . . . . . Potential Cave-ins 7 | . . . . . . . . . . . 3 . . . . . . . . . 4 . . . Cave-ins Triggered 1 | . . . . . . . . . . . . . . . . . . . . . 1 . . . Teleports 1 | . . . . . . . . . . . . . . . . . . . . . . 1 . . Exploration Rate (%) 41 | 3 42 16 39 59 17 38 47 85 12 27 12 62 75 60 73 21 48 45 77 49 22 48 64 1 Regions Visited 24 Branch Regions 13 Pre-discovered Areas 4 | . . . . 1 . . . . . . . . . 3 . . . . . . . . . . Known Exits Taken 7 | . . . . . . 1 . . 1 . 1 . . . . 1 . 1 . . 1 1 . . Unknown Exits Taken 15 | 1 1 1 1 1 1 . . . . 1 . 1 1 1 1 . 1 . 1 1 . . 1 . Scrap Searched 9 | . . . . . . . . . . . . 1 2 . 2 . 2 2 . . . . . . Spaces Dug 100 | . . . . . . . 4 5 . 4 2 2 . . . 17 12 4 1 6 21 8 14 . Terrain Destroyed 826 | . . 11 9 . . 18 60 14 . 5 20 6 7 . 30 162 26 27 42 32 106 124 127 . Melee 4 | . . . . . . . . . . 4 . . . . . . . . . . . . . . Projectile 544 | . . . . . . . 6 13 . 1 20 6 7 . 28 86 26 27 4 32 94 123 71 . AOE 261 | . . 11 9 . . 18 54 . . . . . . . . 75 . . 38 . 9 . 47 . Terrain Rammed . | . . . . . . . . . . . . . . . . . . . . . . . . . Walls Destroyed . | . . . . . . . . . . . . . . . . . . . . . . . . . Machines Disabled . | . . . . . . . . . . . . . . . . . . . . . . . . . Actions | -11 -10 -9 -9 -9 -8 -8 -7 -7 -7 -6 -5 -5 -5 -5 -4 -4 -4 -4 -4 -3 -3 -2 -2 -2 --------- Run | Yrd Mat Mat Min Exi Min Mat Fac Was Fac Fac Fac Upp Upp Zhi Pro Fac Upp Upp War Pro Res Res Tes Sec Total 15150 | . 244 142 170 206 53 515 1945 572 320 881 746 444 615 190 714 1005 379 305 933 227 1029 2267 1231 17 Wait 927 | . 1 . . . . 1 33 135 20 46 80 19 31 . 80 52 . 18 143 . 36 134 98 . Move 12360 | . 200 123 159 204 44 403 1762 327 292 739 531 409 559 155 545 770 358 266 720 205 784 1869 931 5 Hop . | . . . . . . . . . . . . . . . . . . . . . . . . . Pick Up 201 | . 9 8 1 . 3 21 17 12 4 8 21 . 1 2 8 19 3 . 11 . 16 25 12 . Fast Attach 179 | . 2 . . . . 2 11 8 . 2 8 . 2 13 2 24 . 1 5 . 21 55 22 1 Attach 105 | . . 4 . . . 4 5 3 . 4 9 . . 1 12 12 . 1 7 . 13 12 12 6 Detach 43 | . 1 1 . . . . 1 1 . 4 1 . . 1 3 1 . . 6 . 8 9 3 3 Swap 235 | . 2 3 5 1 . 12 17 6 . 22 17 8 4 . 10 26 3 5 11 7 25 15 36 . Drop 263 | . 7 1 3 1 . 22 26 17 4 3 14 . 4 14 6 18 2 2 15 . 15 60 29 . Fire 798 | . 21 2 2 . 5 48 67 56 . 43 61 8 14 4 48 82 13 12 15 15 109 88 83 2 Melee 13 | . . . . . . 1 2 4 . 6 . . . . . . . . . . . . . . Ram 1 | . . . . . . . . . . . . . . . . 1 . . . . . . . . Kick . | . . . . . . . . . . . . . . . . . . . . . . . . . Crush 21 | . 1 . . . 1 1 4 . . 4 4 . . . . . . . . . 1 . 5 . Escape Stasis 1 | . . . . . . . . . . . . . . . . . . . . . 1 . . . Rewire 3 | . . . . . . . . 3 . . . . . . . . . . . . . . . . Trap . | . . . . . . . . . . . . . . . . . . . . . . . . . Miscellaneous . | . . . . . . . . . . . . . . . . . . . . . . . . . Route ------- -11/Scrapyard -10/Materials (discovered 3 exits: *Mat x2 / [*Min]) -9/Materials -9/Mines (discovered 2 exits: [*Mat] / *Exi) -9/Exiles -8/Mines -8/Materials -7/Factory (discovered 2 exits: *Fac x2) -7/Waste -7/Factory -6/Factory -5/Factory (discovered 4 exits: *Upp x2 / Ext x2) -5/Upper Caves -5/Upper Caves (discovered 2 exits: *Fac / *Zhi) -5/Zhirov -4/Proximity Caves -4/Factory (discovered 2 exits: *Upp x2) -4/Upper Caves -4/Upper Caves -4/Warlord -3/Proximity Caves -3/Research (discovered 4 exits: *Res / Arm / Qua x2) -2/Research (discovered 4 exits: *Acc x2 / *Tes x2) -2/Testing (discovered 2 exits: [*Sec] / [*Frg]) -2/Section 7 History --------- Turn | Location | Event 1 | -11/Scrapyard | Discovered new exit (range 0) 1 | -11/Scrapyard | Entered Materials 145 | -10/Materials | Discovered new exit (range 13) 190 | -10/Materials | Discovered new exit (range 16) 338 | -10/Materials | Build established: Mutant 343 | -10/Materials | Discovered new exit (range 3) 405 | -10/Materials | Entered another Materials area 405 | -9/Materials | Accompanied by 1 ally 405 | -9/Materials | Evolved 2 slots: Utility x1, Weapon x1 491 | -9/Materials | Discovered new exit (range 16) 530 | -9/Materials | Central database locked down 625 | -9/Materials | Entered Mines 625 | -9/Mines | Accompanied by 1 ally 642 | -9/Mines | Met a Derelict bent on vengeance 675 | -9/Mines | A weapon hastily lodged in a ceiling crevice suddenly fell to the ground 745 | -9/Mines | Build established: Tank 801 | -9/Mines | Discovered new exit (range 6) 885 | -9/Mines | Deemed a non-threat by the Exiles lab entrance 885 | -9/Mines | Discovered new exit (range 5) 893 | -9/Mines | Entered Exiles 893 | -9/Exiles | Accompanied by 1 ally 932 | -9/Exiles | Met 8R-AWN 959 | -9/Exiles | Met EX-HEX 1023 | -9/Exiles | Met EX-DEC 1029 | -9/Exiles | Learned location of Zion (-6) 1215 | -9/Exiles | Discovered new exit (range 10) 1233 | -9/Exiles | Entered Mines 1233 | -8/Mines | Accompanied by 1 ally 1320 | -8/Mines | Discovered new exit (range 7) 1342 | -8/Mines | Entered Materials 1342 | -8/Materials | Accompanied by 1 ally 1342 | -8/Materials | Evolved 2 slots: Propulsion x1, Utility x1 2015 | -8/Materials | Build established: Scavenger-Tank 2118 | -8/Materials | Discovered new exit (range 19) 2197 | -8/Materials | Identified exit to Factory 2198 | -8/Materials | Entered Factory 2198 | -7/Factory | Accompanied by 1 ally 2198 | -7/Factory | Evolved 2 slots: Propulsion x1, Weapon x1 2504 | -7/Factory | Build established: Scavenger-Skirmisher 3098 | -7/Factory | Build established: Scavenger-Gunner 3773 | -7/Factory | Discovered new exit (range 8) 3787 | -7/Factory | Identified exit to Factory 4492 | -7/Factory | Discovered exit to Factory (range 10) 4819 | -7/Factory | Build established: Gunner 5309 | -7/Factory | Manually triggered Chute Trap 5309 | -7/Factory | Sucked down chute 5309 | -7/Factory | Entered Waste 5323 | -7/Waste | Spotted C-40 Crusher 5357 | -7/Waste | Spotted C-40 Crusher 5400 | -7/Waste | Destroyed C-40 Crusher 5427 | -7/Waste | Spotted C-40 Crusher 5432 | -7/Waste | Spotted C-40 Crusher 5435 | -7/Waste | Spotted C-40 Crusher 5465 | -7/Waste | Destroyed C-40 Crusher 5561 | -7/Waste | Crushed by Compactor (1 part destroyed, 1 dropped) 5568 | -7/Waste | Rewired C-40 Crusher 5647 | -7/Waste | Build established: Skirmisher 5664 | -7/Waste | Spotted C-40 Crusher 5745 | -7/Waste | Discovered new exit (range 12) 5841 | -7/Waste | Destroyed C-40 Crusher 5852 | -7/Waste | Destroyed C-40 Crusher 5957 | -7/Waste | Destroyed C-40 Crusher 5995 | -7/Waste | Warlord forces began an assault 6171 | -7/Waste | Identified exit to Factory 6197 | -7/Waste | Entered Factory 6197 | -7/Factory | Accompanied by 16 allies 6483 | -7/Factory | Build established: Scavenger-Skirmisher 6511 | -7/Factory | Discovered exit to Factory (range 15) 6691 | -7/Factory | Entered another Factory area 6691 | -6/Factory | Accompanied by 13 allies 6691 | -6/Factory | Evolved 2 slots: Weapon x2 6849 | -6/Factory | Lost 5 allies 6881 | -6/Factory | Garrison activated, responded to threat 6934 | -6/Factory | Lost 3 allies 7039 | -6/Factory | Build established: Scavenger-Executioner 7059 | -6/Factory | Lost 4 allies 7353 | -6/Factory | Fabricated Imp. Salvage Targeting Computer (x2) 8135 | -6/Factory | Discovered new exit (range 5) 8158 | -6/Factory | Entered another Factory area 8158 | -5/Factory | Evolved 2 slots: Weapon x2 8814 | -5/Factory | Identified exit to Upper Caves 8814 | -5/Factory | Identified exit to Extension 8918 | -5/Factory | Destroyed 11 combat bots 8924 | -5/Factory | Lost 5 parts (1p1u3w) 9342 | -5/Factory | Central database locked down 9358 | -5/Factory | First assault squad dispatched 9360 | -5/Factory | Entered Upper Caves 9884 | -5/Upper Caves | Attracted the attention of an 0b10 checkpoint 10050 | -5/Upper Caves | Discovered new exit (range 8) 10065 | -5/Upper Caves | Entered another Upper Caves area 10149 | -5/Upper Caves | Discovered new exit (range 12) 10954 | -5/Upper Caves | Attracted the attention of an 0b10 checkpoint 11037 | -5/Upper Caves | Discovered new exit (range 7) 11047 | -5/Upper Caves | Entered Zhirov 11052 | -5/Zhirov | Discovered new exit (range 3) 11080 | -5/Zhirov | Met Zhirov 11109 | -5/Zhirov | Learned location of Quarantine (-3) 11109 | -5/Zhirov | Learned location of Testing (-2) 11109 | -5/Zhirov | Learned location of Command (-1) 11123 | -5/Zhirov | Zhirov requested help retrieving the SGEMP Prototype 11148 | -5/Zhirov | Found Alien Artifact 11148 | -5/Zhirov | Identified Integrated Dissipator 11148 | -5/Zhirov | Installed Integrated Dissipator, increased core heat dissipation (+20) 11171 | -5/Zhirov | Found Alien Artifact 11333 | -5/Zhirov | Entered Proximity Caves 11470 | -4/Proximity Caves | Acquired the password to a Derelict Tinkerer's latest research 11481 | -4/Proximity Caves | Found Prototype Special Weapon 11481 | -4/Proximity Caves | Identified Molecular Deconstructor 11587 | -4/Proximity Caves | Caught by Unaware searching for contraband prototypes 11650 | -4/Proximity Caves | Caught by Unaware searching for contraband prototypes 12195 | -4/Proximity Caves | Lost 3 parts (1n2w) 12237 | -4/Proximity Caves | Attracted the attention of an 0b10 checkpoint 12477 | -4/Proximity Caves | Lost 3 parts (3w) 12479 | -4/Proximity Caves | Discovered new exit (range 14) 12505 | -4/Proximity Caves | Learned Research garrison access intel 12507 | -4/Proximity Caves | Entered Factory 12507 | -4/Factory | Evolved 2 slots: Weapon x2 13039 | -4/Factory | Garrison activated, responded to threat 13315 | -4/Factory | Identified exit to Upper Caves 13880 | -4/Factory | Lost 7 parts (2n5w) 13996 | -4/Factory | Found Prototype Hackware 14091 | -4/Factory | Entered Upper Caves 14274 | -4/Upper Caves | Attacked by a delusional Derelict stockpiling parts 14344 | -4/Upper Caves | Learned 12 Research zone layouts 14683 | -4/Upper Caves | Discovered new exit (range 8) 14700 | -4/Upper Caves | Entered another Upper Caves area 14701 | -4/Upper Caves | Identified exit to Warlord 14959 | -4/Upper Caves | Encountered a Warlord checkpoint 14963 | -4/Upper Caves | Attracted the attention of an 0b10 checkpoint 15173 | -4/Upper Caves | Entered Warlord 15223 | -4/Warlord | System corruption cleaned by Quarantine Array 15450 | -4/Warlord | Met Warlord 15475 | -4/Warlord | Warlord's base attacked by MAIN.C 15825 | -4/Warlord | Warlord forces counterattacked 15901 | -4/Warlord | Found Prototype Processor 15990 | -4/Warlord | Lost 5 allies 16150 | -4/Warlord | Warlord base infiltrated, sounded retreat 16151 | -4/Warlord | Enhanced Grunt warped into view 16151 | -4/Warlord | Enhanced Grunt warped into view 16151 | -4/Warlord | Enhanced Grunt warped into view 16151 | -4/Warlord | Enhanced Demolisher warped into view 16151 | -4/Warlord | Enhanced Demolisher warped into view 16151 | -4/Warlord | Enhanced Demolisher warped into view 16207 | -4/Warlord | Found Prototype Launcher 16246 | -4/Warlord | Spotted Striker 16247 | -4/Warlord | Destroyed Striker 16263 | -4/Warlord | Lost 5 allies 16288 | -4/Warlord | Spotted Executioner 16303 | -4/Warlord | Spotted B-90 Cyclops 16315 | -4/Warlord | Destroyed B-90 Cyclops 16341 | -4/Warlord | Found Prototype Processor 16353 | -4/Warlord | Spotted Executioner 16359 | -4/Warlord | Destroyed Executioner 16370 | -4/Warlord | Discovered new exit (range 15) 16376 | -4/Warlord | Spotted Executioner 16376 | -4/Warlord | Spotted Striker 16377 | -4/Warlord | Identified Chain Missile Launcher 16378 | -4/Warlord | Spotted Executioner 16380 | -4/Warlord | Destroyed Striker 16386 | -4/Warlord | Destroyed Executioner 16395 | -4/Warlord | System corruption reached 10% 16406 | -4/Warlord | Lost 10 allies 16410 | -4/Warlord | Destroyed 12 combat bots 16436 | -4/Warlord | Entered Proximity Caves 16713 | -3/Proximity Caves | Spotted B-86 Titan 16723 | -3/Proximity Caves | Destroyed B-86 Titan 16781 | -3/Proximity Caves | Discovered new exit (range 15) 16808 | -3/Proximity Caves | Entered Research 16808 | -3/Research | Evolved 2 slots: Weapon x2 16809 | -3/Research | Identified exit to Armory 16810 | -3/Research | Identified exit to Research 16811 | -3/Research | Loaded intel: 4 garrison access locations 17331 | -3/Research | Lost 3 parts (1u2w) 17337 | -3/Research | Destroyed 10 combat bots 17510 | -3/Research | Lost 4 parts (4w) 17575 | -3/Research | Garrison activated, responded to threat 17756 | -3/Research | Identified Exp. System Shield 18109 | -3/Research | Crushed by falling debris 18110 | -3/Research | System corruption reached 10% 18140 | -3/Research | Lost 3 parts (1u2w) 18504 | -3/Research | Identified exit to Quarantine 18558 | -3/Research | First assault squad dispatched 18649 | -3/Research | Entered another Research area 18649 | -2/Research | Warlord forces began assault on 0b10 18649 | -2/Research | Evolved 2 slots: Weapon x2 18759 | -2/Research | Research machine network offline 18868 | -2/Research | Lost 3 parts (3w) 19062 | -2/Research | Discovered new exit (range 16) 19112 | -2/Research | Found Prototype Processor 19112 | -2/Research | Identified Exp. Armor Integrity Analyzer 19244 | -2/Research | Borebot progress halted 19570 | -2/Research | Borebot progress halted 19952 | -2/Research | Lost 12 allies 20025 | -2/Research | Spotted Striker 20039 | -2/Research | Destroyed Striker 20124 | -2/Research | Spotted Striker 20128 | -2/Research | Spotted Striker 20132 | -2/Research | Destroyed Striker 20135 | -2/Research | Destroyed Striker 20154 | -2/Research | Given Cave Seal Controls access code 20173 | -2/Research | Spotted Executioner 20174 | -2/Research | Destroyed Executioner 20266 | -2/Research | Spotted Executioner 20271 | -2/Research | Destroyed Executioner 20272 | -2/Research | Spotted Executioner 20279 | -2/Research | Destroyed Executioner 20281 | -2/Research | Spotted Striker 20309 | -2/Research | Destroyed Striker 20361 | -2/Research | Destroyed 10 combat bots 20364 | -2/Research | Lost 12 parts (1u11w) 20415 | -2/Research | Spotted Striker 20415 | -2/Research | Identified Spectral Analyzer 20421 | -2/Research | Identified Transdimensional Reconstructor 20421 | -2/Research | Warped through subspace 20430 | -2/Research | Discovered new exit (range 17) 20440 | -2/Research | Lost 3 parts (1n1u1w) 20590 | -2/Research | Spotted B-90 Cyclops 20741 | -2/Research | Discovered new exit (range 13) 20746 | -2/Research | Identified exit to Access 20761 | -2/Research | Identified exit to Testing 20794 | -2/Research | Spotted Executioner 20904 | -2/Research | Lost 4 allies 20995 | -2/Research | Met DD-05H 21092 | -2/Research | Met PL-HR7 21344 | -2/Research | Spotted Striker 21347 | -2/Research | Spotted Striker 21474 | -2/Research | Spotted Striker 21484 | -2/Research | Destroyed Striker 21522 | -2/Research | Spotted Striker 21528 | -2/Research | Spotted Executioner 21534 | -2/Research | Destroyed Executioner 21562 | -2/Research | Spotted Striker 21731 | -2/Research | Borebot progress halted 21760 | -2/Research | Discovered exit to Access (range 12) 21935 | -2/Research | Spotted Striker 22368 | -2/Research | Entered Testing 22396 | -2/Testing | Found Prototype Energy Gun 22396 | -2/Testing | Identified Hyp. EM Gauss Rifle 22513 | -2/Testing | Garrison activated, responded to threat 22625 | -2/Testing | Protovariant out of control (PY-IOXEMZ7GQE) 22625 | -2/Testing | Unleashed a protovariant (PY-IOXEMZ7GQE) 22868 | -2/Testing | First assault squad dispatched 23339 | -2/Testing | Spotted Investigator 23345 | -2/Testing | Destroyed Investigator 23399 | -2/Testing | Spotted PX-3FMPW3ANIM 23635 | -2/Testing | Destroyed PX-3FMPW3ANIM 23655 | -2/Testing | Lost 6 parts (1p5w) 23670 | -2/Testing | Found Prototype Device 23670 | -2/Testing | Identified Exp. Transmission Jammer 24259 | -2/Testing | Spotted Fortress 24342 | -2/Testing | Lost 12 parts (1n11w) 24398 | -2/Testing | Discovered new exit (range 5) 24398 | -2/Testing | Discovered new exit (range 6) 24407 | -2/Testing | Entered Section 7 24422 | -2/Section 7 | Found Alien Artifact 24422 | -2/Section 7 | Identified Integrity Redistributor 24422 | -2/Section 7 | Used Integrity Redistributor, redistributed integrity from core (-208) 24423 | -2/Section 7 | Core integrity fell below 50% 24430 | -2/Section 7 | Self-destructed Last Messages --------------- 24281_ KE Penetrator+ destroyed. 24281_ Critical hit (Meltdown: +430). 24285_ System corrupted: Energy discharge (-32). 24290_ KE Penetrator+ destroyed. 24355_ System corrupted: FCS attempts to trigger KE Penetrator+. 24355_ System corrupted: KE Penetrator+ misfires. 24355_ Slug penetrates Wall. 24368_ ALERT: Unidentified disturbance in Zone 6X, assault force dispatched. 24378_ System corrupted: Component data lost. 24398_ EXIT=FOUND LOCATION=UNKNOWN GOAL=ESCAPE 24413_ Slug penetrates Suspension Chamber. 24416_ Suspension Chamber breached. 24422_ Acquired Alien Artifact. 24422_ Identified Integrity Redistributor. 24422_ Integrity redistributed from core (-208). Map ----- +----------------------------------------------------+ | ?????????????????????????????????????? | | ?????????????????????????????????????? | | ?????????????????????????????????????? | | ?????????????????????????????????????? | | ?????????????????????????????????????? | | ?????????????????????????????????????? | | ?????????????????????????????????????? | | ?????????????????????????????????????? | | ?????????????????????????????????????? | | ?????????????????????????????????????? | | ?????????????????????????????????????? | | ?????????????????????????????????????? | | ?????????????????????????????????????? | | ?????????????????????????????????????? | | ?????????????????????????????????????? | | ?????????????????????????????????????? | | ?????????????????????????????????????? | | ?????????????????????????????????????? | | ???????##########????????????????????? | | ???????# #########????????????? | | ???????# # ?????????????? | | ???????# # #???????????????? | | ???????# "" # #???????????????? | | ???????# " + #???????????????? | | ???????# " """ # #???????????????? | | ???????# """@ # #???????????????? | | ???????# """"" # #???????????????? | | ???????# # #???????????????? | | ???????########## #???????????????? | | ????????????????# #???????????????? | | ????????????????# ???????????????? | | ????????????????# ??????????????? | | ????????????????# ?????????????? | | ????????????????# ?????????????? | | ????????????????# ###+????????????? | | ????????????????? #???????????????? | | ????????????????? #???????????????? | | ????????????????? ????????????????? | | ?????????????????????????????????????? | | ?????????????????????????????????????? | | ?????????????????????????????????????? | | ?????????????????????????????????????? | | ?????????????????????????????????????? | | ?????????????????????????????????????? | | ?????????????????????????????????????? | | ?????????????????????????????????????? | | ?????????????????????????????????????? | | ?????????????????????????????????????? | | ?????????????????????????????????????? | | ?????????????????????????????????????? | +----------------------------------------------------+ Best States ------------- Heat Dissipation 126 Coolant Potential 100 Energy Generation 29 Energy Capacity 350 Matter Stores 300 Matter Capacity 300 Sight Range 24 Robot Scan Range 16 Terrain Scan Density 10 Armor Coverage 150 Evasion (%) 40 Core Analysis 6 Recoil Reduction 4 Salvage Targeting 2 Offensive Hacking 10 Defensive Hacking 16 Item Schematics ----------------- Coil Gun | -7/Factory | Hacked Imp. Salvage Targeting Computer | -7/Factory | Hacked Assault Drone Bay | -5/Zhirov | Free Exp. Heat Sink | -5/Zhirov | Free Exp. Optical Array | -5/Zhirov | Free Imp. Arc Thrower | -5/Zhirov | Free Exp. Targeting Computer | -2/Testing | Archive Cld. Q-thruster | -2/Testing | Archive Cld. Plasma Rifle | -2/Testing | Archive Exp. Transmission Jammer | -2/Testing | Archive Robot Schematics ------------------ S-43 Plague | -2/Testing | Archive A-27 Freighter | -2/Testing | Archive A-15 Conveyor | -2/Testing | Archive R-06 Scavenger | -2/Testing | Archive Fabricated ------------ Imp. Salvage Targeting Computer | x2 | -6/Factory Repaired ---------- Nothing Studied --------- Assault Rifle | -9/Materials | Hacked Mni. Grenade Launcher | -9/Materials | Hacked Lgt. Treads | -9/Materials | Hacked Hvy. Assault Rifle | -7/Factory | Hacked Minigun | -7/Factory | Hacked Lgt. Assault Rifle | -7/Factory | Hacked Beam Rifle | -7/Factory | Hacked Gatling Laser | -7/Factory | Hacked Med. Treads | -7/Factory | Hacked Gauss Rifle | -6/Factory | Hacked Autogun | -6/Factory | Hacked Hvy. Treads | -6/Factory | Hacked KE Penetrator | -5/Factory | Hacked Lgt. Fission Core | -5/Factory | Hacked Hvy. Phase Cannon | -5/Factory | Hacked Coil Gun | -4/Factory | Hacked Plasma Rifle | -2/Research | Hacked Alien Tech Used ----------------- Integrated Dissipator Transdimensional Reconstructor Integrity Redistributor Achievements -------------- Deconstruction Challenges ------------ None Game ------ Seed StasisClaymoresAccelerator Manual? 0 Play Time 03:10:51 Cumulative 569.2 hours Start 2026.09.22 @ 19:00:27 End 2026.09.23 @ 19:16:17 Sessions 9 Manual Loads 0 Difficulty Rogue Special Mode None Game No. 218 Rogue 218 Adventurer 0 Explorer 0 Win Type - Total 24 Types 5/0/12/0/1/0/3/1/1/1 Lore% 83 Gallery% 86 Achievement% 80 Wizard Run 0 Options --------- Layout 1 ASCII 0 Keyboard 0 Movement Arrows Keybinds 0 Fullscreen 2 Font 24/Smallcaps Map View 50x35 Zoom Use 0% Tactical HUD 1 Map Filters NONE Filters NONE Steam X RUN: 694c7cf0-08da-4c0a-bba6-f9e3c309c4a0